bitfinex-derivatives/quotes_BTCF0:USTF0_20250904
["timestamp","ask_amount","ask_price","bid_price","bid_amount"]
[1756993591044,0.70364,110500.0,110490.0,0.01918989]
[1756993591247,1.11840847,110500.0,110480.0,0.38346]
[1756993591450,1.11750847,110500.0,110480.0,0.38346]
[1756993591645,1.11450847,110500.0,110480.0,0.38346]
[1756993591857,1.60546,110500.0,110490.0,0.02256]
[1756993592059,1.60536,110500.0,110490.0,0.02256]
[1756993592252,1.60536,110500.0,110490.0,0.004]
[1756993592557,1.60536,110500.0,110490.0,0.02656]
[1756993592759,1.60536,110500.0,110490.0,0.02256]
[1756993593756,0.69964,110500.0,110490.0,0.05968]
[1756993594855,0.69964,110500.0,110490.0,0.06168]
[1756993595857,0.69964,110500.0,110490.0,0.06268]
[1756993596160,0.69964,110500.0,110490.0,0.003]
[1756993596559,1.11440847,110500.0,110490.0,0.003]
[1756993597160,1.14094,110500.0,110480.0,0.38346]
[1756993597460,1.14104,110500.0,110480.0,0.38346]
[1756993598047,1.14104,110500.0,110490.0,0.05968]
[1756993598361,1.63145153,110500.0,110490.0,0.05968]
[1756993598854,1.63145153,110500.0,110490.0,0.02256]
[1756993599055,1.63145153,110500.0,110490.0,0.05968]
[1756993599354,2.04722,110500.0,110490.0,0.02256]
[1756993599757,2.29722,110500.0,110480.0,0.0001]
[1756993600060,0.81650847,110490.0,110480.0,0.0001]
[1756993600248,1.15650847,110490.0,110470.0,0.38346]
[1756993600456,1.15660847,110490.0,110470.0,0.02266]
[1756993600649,1.31980847,110480.0,110470.0,0.0001]
[1756993600861,2.01692379,110480.0,110460.0,0.02266]
[1756993601064,0.02979,110470.0,110460.0,0.06085]
[1756993601366,0.32979,110470.0,110460.0,0.06075]
[1756993601959,0.32979,110470.0,110460.0,0.02358078]
[1756993602354,1.23471,110470.0,110460.0,0.02358078]
[1756993602660,0.32979,110470.0,110460.0,0.06177078]
[1756993602856,1.23467,110470.0,110460.0,0.06177078]
[1756993604259,0.3,110470.0,110460.0,0.31177078]
[1756993604465,0.32979,110470.0,110460.0,0.31177078]
[1756993605072,0.0001,110480.0,110460.0,1.08733925]
[1756993605361,0.3401,110480.0,110470.0,0.83538847]
[1756993605562,0.34,110480.0,110470.0,0.83538847]
[1756993605755,0.34,110480.0,110470.0,1.08640925]
[1756993605955,0.02117246,110490.0,110480.0,0.02163]
[1756993606161,0.08107246,110490.0,110480.0,0.83538847]
[1756993606359,0.02107246,110490.0,110480.0,1.08538847]
[1756993606564,0.05107246,110490.0,110480.0,1.98998847]
[1756993606860,0.05107246,110490.0,110480.0,1.99100925]
[1756993607060,0.02107246,110490.0,110480.0,2.74201277]
[1756993607365,0.0001,110500.0,110490.0,0.05982]
[1756993607555,0.37212238,110510.0,110500.0,0.05982]
[1756993607556,0.02103087,110510.0,110500.0,0.05982]
[1756993607759,0.36093087,110510.0,110500.0,1.73986847]
[1756993607966,0.02093087,110510.0,110500.0,1.98982847]
[1756993608267,0.02093087,110510.0,110500.0,1.08538847]
[1756993608462,0.02093087,110510.0,110500.0,1.99186848]
[1756993608964,0.02093087,110510.0,110500.0,1.08742848]
[1756993609164,0.15093087,110510.0,110500.0,1.99182848]
[1756993609362,0.28093087,110510.0,110500.0,1.08742848]
[1756993609765,0.27093087,110510.0,110500.0,1.99170848]
[1756993610062,0.02093087,110510.0,110500.0,1.99270848]
[1756993610463,0.02093087,110510.0,110500.0,1.08842848]
[1756993610667,0.02093087,110510.0,110500.0,1.99258848]
[1756993611560,0.02093087,110510.0,110500.0,2.65294558]
[1756993611767,0.0001,110520.0,110510.0,0.05982]
[1756993612070,0.04045554,110530.0,110520.0,0.05982]
[1756993612262,0.15045554,110530.0,110520.0,1.73934847]
[1756993612471,0.15045554,110530.0,110520.0,1.74138848]
[1756993612764,0.34045554,110530.0,110520.0,0.83742848]
[1756993612959,1.45318401,110530.0,110520.0,0.00204001]
[1756993613161,1.46247401,110530.0,110520.0,0.00204001]
[1756993613471,1.46568502,110530.0,110520.0,0.00204001]
[1756993613665,1.46668502,110530.0,110520.0,0.00204001]
[1756993613871,0.04462,110520.0,110510.0,0.0001]
[1756993614066,0.82339948,110520.0,110500.0,0.02173]
[1756993614269,0.45513948,110510.0,110500.0,0.05992]
[1756993614571,0.33716,110510.0,110500.0,0.05982]
[1756993614772,0.33716,110510.0,110490.0,0.38253]
[1756993615070,0.33726,110510.0,110500.0,0.05982]
[1756993615267,0.3,110510.0,110500.0,1.38135948]
[1756993615572,0.02144833,110520.0,110500.0,1.74215948]
[1756993615760,0.35860833,110520.0,110510.0,0.42062]
[1756993615957,0.32134833,110520.0,110510.0,0.83859948]
[1756993616165,0.35850833,110520.0,110510.0,0.83859948]
[1756993616470,0.35850833,110520.0,110510.0,0.42062]
[1756993616969,0.35950833,110520.0,110510.0,0.83859948]
[1756993617175,0.36050833,110520.0,110510.0,0.83859948]
[1756993617767,0.25734833,110520.0,110510.0,0.83859948]
[1756993618065,0.25734833,110520.0,110510.0,1.3239]
[1756993618870,0.25634833,110520.0,110510.0,1.3239]
[1756993619372,0.25734833,110520.0,110510.0,1.3239]
[1756993619577,0.25834833,110520.0,110510.0,1.32374]
[1756993620176,0.25834833,110520.0,110510.0,0.96294]
[1756993620774,0.94308781,110520.0,110510.0,0.90312]
[1756993620962,1.30388781,110520.0,110500.0,0.02173]
[1756993621167,0.45513948,110510.0,110500.0,0.02173]
[1756993621369,0.38716,110510.0,110500.0,0.05982]
[1756993622571,1.19923941,110510.0,110490.0,1.28537]
[1756993622876,1.18736941,110510.0,110490.0,1.28537]
[1756993623471,1.18736941,110510.0,110500.0,0.05982]
[1756993623670,0.40848993,110510.0,110500.0,0.05982]
[1756993624376,0.41048993,110510.0,110500.0,0.05982]
[1756993624969,0.77128993,110510.0,110500.0,0.05982]
[1756993625469,0.77228993,110510.0,110500.0,0.05982]
[1756993625772,1.19026941,110510.0,110490.0,1.28497]
[1756993626078,1.19236941,110510.0,110490.0,1.28497]
[1756993626272,1.19236941,110510.0,110490.0,1.28493]
[1756993626470,1.19036941,110510.0,110490.0,1.28493]
[1756993626673,1.19336941,110510.0,110490.0,1.28493]
[1756993626973,0.81593948,110500.0,110490.0,0.92413]
[1756993627175,1.12593948,110500.0,110490.0,0.92403]
[1756993628578,1.12793948,110500.0,110490.0,0.92403]
[1756993628777,1.12893948,110500.0,110490.0,0.96222]
[1756993628979,0.71096,110500.0,110490.0,0.96222]
[1756993629180,0.71096,110500.0,110490.0,0.92403]
[1756993629674,0.71096,110500.0,110490.0,0.02163]
[1756993630075,0.71096,110500.0,110490.0,0.05886]
[1756993631877,0.71096,110500.0,110480.0,0.38253]
[1756993632078,0.82819948,110490.0,110480.0,0.0001]
[1756993632283,1.17921135,110490.0,110470.0,0.92353]
[1756993632479,1.17931135,110490.0,110470.0,0.92353]
[1756993633484,1.17931135,110490.0,110470.0,0.92453]
[1756993633979,1.18031135,110490.0,110470.0,0.92453]
[1756993634886,1.17931135,110490.0,110470.0,0.92453]
[1756993635786,1.06255135,110490.0,110470.0,0.92453]
[1756993635987,0.76133187,110490.0,110470.0,0.92453]
[1756993636188,1.17931135,110490.0,110470.0,0.02273]
[1756993636383,1.17931135,110490.0,110470.0,0.92421]
[1756993637987,0.05438,110480.0,110470.0,0.0011]
[1756993638186,0.67563948,110480.0,110470.0,0.02218]
[1756993638487,1.03643948,110480.0,110470.0,0.05941]
[1756993639277,1.03643948,110480.0,110470.0,0.02218]
[1756993640186,1.03643948,110480.0,110470.0,0.05941]
[1756993640888,0.61846,110480.0,110470.0,0.05941]
[1756993641090,0.61846,110480.0,110470.0,0.02218]
[1756993641389,0.61846,110480.0,110470.0,0.001]
[1756993641390,1.03643948,110480.0,110470.0,0.001]
[1756993642091,1.93735948,110480.0,110470.0,0.02218]
[1756993642891,1.03643948,110480.0,110470.0,0.02218]
[1756993643087,1.12693328,110480.0,110470.0,0.05941]
[1756993643284,1.6097138,110480.0,110470.0,0.05941]
[1756993643990,1.6097138,110480.0,110470.0,0.02218]
[1756993644189,1.6097138,110480.0,110470.0,0.001]
[1756993644393,2.02769328,110480.0,110470.0,0.001]
[1756993644784,1.6096338,110480.0,110470.0,0.05941]
[1756993645192,1.6096338,110480.0,110470.0,0.02218]
[1756993645393,1.6096338,110480.0,110460.0,0.92297]
[1756993645394,0.090502,110470.0,110460.0,0.92297]
[1756993645588,0.420502,110470.0,110460.0,0.9601]
[1756993645783,0.420502,110470.0,110460.0,1.62807948]
[1756993646083,0.0001,110480.0,110460.0,2.07938968]
[1756993646287,0.2901,110480.0,110470.0,0.83718948]
[1756993646592,0.29,110480.0,110470.0,0.83820858]
[1756993646791,0.07,110480.0,110470.0,1.08820858]
[1756993646982,0.11159747,110490.0,110480.0,0.05841]
[1756993647188,0.46149747,110490.0,110480.0,0.47638948]
[1756993647492,0.82229747,110490.0,110480.0,0.0594291]
[1756993647697,1.49027695,110490.0,110480.0,0.0010191]
[1756993648582,1.49127695,110490.0,110480.0,0.0010191]
[1756993648784,1.56326913,110490.0,110480.0,0.0010191]
[1756993648987,1.92426913,110490.0,110480.0,0.0010191]
[1756993649589,1.56426913,110490.0,110480.0,0.0010191]
[1756993649795,1.93426913,110490.0,110480.0,0.0010191]
[1756993649988,1.56426913,110490.0,110480.0,0.0010191]
[1756993650183,1.91426913,110490.0,110480.0,0.0010191]
[1756993650391,1.90426913,110490.0,110480.0,0.0010191]
[1756993650600,1.94426913,110490.0,110480.0,0.0010191]
[1756993650790,1.56426913,110490.0,110480.0,0.0010191]
[1756993650994,1.98224861,110490.0,110470.0,0.0001]
[1756993651290,0.77877948,110480.0,110470.0,0.0001]
[1756993651496,3.00671896,110480.0,110460.0,0.0001]
[1756993651696,0.80016555,110470.0,110460.0,0.0001]
[1756993651896,1.15016555,110470.0,110450.0,0.02118]
[1756993652089,0.77877948,110460.0,110450.0,0.0001]
[1756993652286,0.01013,110440.0,110410.0,0.45264803]
[1756993652496,0.93729,110430.0,110420.0,0.02118]
[1756993652687,1.68526948,110430.0,110420.0,0.02118]
[1756993652892,0.36745,110430.0,110420.0,0.05841]
[1756993653087,0.36645,110430.0,110420.0,0.05841]
[1756993653293,0.4569836,110430.0,110420.0,0.05943076]
[1756993653591,0.4569836,110430.0,110420.0,0.72741024]
[1756993654092,0.3619436,110430.0,110420.0,0.30943076]
[1756993654300,0.3619436,110430.0,110420.0,0.05965085]
[1756993654996,0.3599436,110430.0,110420.0,0.05965085]
[1756993655200,0.3599436,110430.0,110420.0,0.06365085]
[1756993655795,0.3599436,110430.0,110420.0,0.06565085]
[1756993656200,0.37698693,110430.0,110420.0,0.31565085]
[1756993659093,0.37698693,110430.0,110420.0,0.73363033]
[1756993659395,0.79496641,110430.0,110420.0,0.42645085]
[1756993659599,0.37698693,110430.0,110420.0,0.42645085]
[1756993659900,0.37698693,110430.0,110420.0,1.09525762]
[1756993660102,0.37698693,110430.0,110420.0,0.42727814]
[1756993660604,0.37698693,110430.0,110420.0,0.6776917]
[1756993660899,0.37698693,110430.0,110420.0,1.09567118]
[1756993661306,0.37698693,110430.0,110420.0,1.99475118]
[1756993661505,0.10757693,110430.0,110420.0,1.99475118]
[1756993661705,0.20757693,110430.0,110420.0,1.99475118]
[1756993661907,0.35757693,110430.0,110420.0,1.99475118]
[1756993662111,0.10757693,110430.0,110420.0,1.99475118]
[1756993662602,0.41757693,110430.0,110420.0,1.99475118]
[1756993662805,0.42757693,110430.0,110420.0,0.3904617]
[1756993663104,0.1092616,110420.0,110410.0,0.49015803]
[1756993663302,0.4492616,110420.0,110410.0,0.90813751]
[1756993663503,0.4305416,110420.0,110410.0,1.80697751]
[1756993663703,0.4105416,110420.0,110410.0,1.80697751]
[1756993663902,0.3905416,110420.0,110410.0,1.80697751]
[1756993664200,0.0905416,110420.0,110410.0,2.05697751]
[1756993664408,0.3705416,110420.0,110410.0,2.05697751]
[1756993664607,0.3305416,110420.0,110410.0,2.05697751]
[1756993664906,0.3305416,110420.0,110410.0,2.05897751]
[1756993665401,0.0905416,110420.0,110410.0,2.06197751]
[1756993665709,0.0671416,110420.0,110410.0,2.76254491]
[1756993666503,0.0671416,110420.0,110410.0,2.85309631]
[1756993666703,0.10767693,110430.0,110420.0,0.02201]
[1756993666704,0.0001,110430.0,110420.0,0.02201]
[1756993666902,0.14975573,110440.0,110430.0,0.05952]
[1756993667213,0.46965573,110440.0,110430.0,0.958]
[1756993667709,0.46965573,110440.0,110430.0,0.83829948]
[1756993668002,1.09518573,110440.0,110430.0,0.03875085]
[1756993668406,1.53057177,110440.0,110430.0,0.00224085]
[1756993668599,1.11259229,110440.0,110430.0,0.00224085]
[1756993668800,1.11259229,110440.0,110430.0,0.03975085]
[1756993669603,1.53057177,110440.0,110430.0,0.03975085]
[1756993670199,1.09786229,110440.0,110430.0,0.06176085]
[1756993670400,0.73706229,110440.0,110430.0,0.06176085]
[1756993672215,0.48706229,110440.0,110430.0,0.47974033]
[1756993672717,0.13879229,110440.0,110430.0,1.09156193]
[1756993673015,0.42879379,110440.0,110430.0,1.09156193]
[1756993673423,0.12879379,110440.0,110430.0,1.09178118]
[1756993673722,0.11138723,110440.0,110430.0,1.17989127]
[1756993673924,0.36138723,110440.0,110430.0,1.69989127]
[1756993674113,0.11138723,110440.0,110430.0,1.69989127]
[1756993674312,0.11138723,110440.0,110430.0,1.79044227]
[1756993674621,0.11138723,110440.0,110430.0,1.69990717]
[1756993675022,0.11138723,110440.0,110430.0,1.79044217]
[1756993675319,0.0001,110450.0,110440.0,0.0905269]
[1756993675520,0.02138607,110470.0,110450.0,0.1500387]
[1756993675521,0.0001,110460.0,110450.0,0.1500387]
[1756993675820,0.02148607,110470.0,110460.0,0.05952]
[1756993676022,0.02138607,110470.0,110460.0,0.42032]
[1756993676208,0.36138607,110470.0,110460.0,0.42032]
[1756993676411,0.39965607,110470.0,110460.0,1.3202817]
[1756993676820,0.04,110470.0,110460.0,1.3202817]
[1756993677121,0.36827,110470.0,110460.0,0.4228017]
[1756993677320,0.06827,110470.0,110460.0,1.3202817]
[1756993677526,0.38827,110470.0,110460.0,0.4228017]
[1756993677716,0.09832544,110470.0,110460.0,1.3201617]
[1756993677918,0.0001,110480.0,110470.0,0.10542456]
[1756993678117,0.32,110480.0,110470.0,0.46622456]
[1756993678323,0.35827,110480.0,110470.0,0.46622456]
[1756993678621,0.35827,110480.0,110470.0,0.46870626]
[1756993679125,0.37519785,110480.0,110470.0,0.46870626]
[1756993679419,0.37519785,110480.0,110470.0,1.00514626]
[1756993679621,0.37819785,110480.0,110470.0,1.00514626]
[1756993679923,0.40307785,110480.0,110470.0,0.98293626]
[1756993680432,0.38119785,110480.0,110470.0,1.36574626]
[1756993680934,0.34292785,110480.0,110470.0,1.78130073]
[1756993681431,0.34292785,110480.0,110470.0,1.85235041]
[1756993681733,0.10292785,110480.0,110470.0,1.85235041]
[1756993681922,0.02292785,110480.0,110470.0,2.19285131]
[1756993682126,0.01992785,110480.0,110470.0,2.10235041]
[1756993682328,0.09992785,110480.0,110470.0,1.43779594]
[1756993682533,0.36992785,110480.0,110470.0,1.43779594]
[1756993682831,0.29703785,110480.0,110470.0,0.49485138]
[1756993683133,0.31891785,110480.0,110470.0,1.39149138]
[1756993683336,0.31891785,110480.0,110470.0,1.39249138]
[1756993683634,0.31691785,110480.0,110470.0,1.39249138]
[1756993683834,0.31791785,110480.0,110470.0,1.39249138]
[1756993684829,1.34427232,110480.0,110470.0,0.0044817]
[1756993685127,1.36155815,110480.0,110470.0,0.0024817]
[1756993685338,1.36255815,110480.0,110470.0,0.0024817]
[1756993685731,2.25887815,110480.0,110470.0,0.0024817]
[1756993685929,2.26087815,110480.0,110460.0,0.0001]
[1756993686130,0.02188,110460.0,110440.0,1.25707999]
[1756993686434,0.02188,110460.0,110440.0,0.89628]
[1756993686435,0.03827,110450.0,110440.0,0.89628]
[1756993686636,0.32827,110450.0,110440.0,0.03751]
[1756993686833,0.35015,110450.0,110440.0,0.03751]
[1756993687229,0.35015,110450.0,110430.0,1.27901]
[1756993687435,0.35025,110450.0,110430.0,1.27893]
[1756993688332,0.35025,110450.0,110440.0,0.03751]
[1756993688531,0.35015,110450.0,110440.0,0.03851]
[1756993689127,0.35015,110450.0,110440.0,0.03751]
[1756993689932,0.35015,110450.0,110440.0,0.03851]
[1756993691735,0.96095,110450.0,110440.0,0.001]
[1756993691938,1.37650447,110450.0,110440.0,0.001]
[1756993692138,1.39743395,110450.0,110440.0,0.001]
[1756993694342,0.03731,110420.0,110410.0,3.09863803]
[1756993694540,0.36731,110420.0,110410.0,1.34895803]
[1756993695339,0.37731,110420.0,110410.0,1.34997969]
[1756993695541,0.39995,110420.0,110410.0,1.00967969]
[1756993696134,0.76075,110420.0,110410.0,1.01267969]
[1756993696335,0.76075,110420.0,110410.0,1.01289896]
[1756993696739,0.76075,110420.0,110410.0,0.11741896]
[1756993697036,1.42630447,110420.0,110410.0,0.00624093]
[1756993698034,2.32154447,110420.0,110410.0,0.00624093]
[1756993698236,1.42630447,110420.0,110410.0,0.00624093]
[1756993698432,1.01075,110420.0,110410.0,0.00324093]
[1756993698638,1.01075,110420.0,110410.0,0.04175093]
[1756993699035,1.01075,110420.0,110410.0,0.00224093]
[1756993699235,1.01075,110420.0,110410.0,0.00124093]
[1756993700042,1.90583,110420.0,110410.0,0.03975093]
[1756993700346,1.90583,110420.0,110410.0,0.00124093]
[1756993700536,1.01075,110420.0,110410.0,0.03975093]
[1756993701838,1.01075,110420.0,110410.0,0.06287093]
[1756993702039,1.01075,110420.0,110410.0,0.06389263]
[1756993702345,0.37731,110420.0,110410.0,0.06389263]
[1756993702547,0.34,110420.0,110410.0,1.9850871]
[1756993703046,0.4305417,110420.0,110410.0,1.98530632]
[1756993703341,0.4678517,110420.0,110410.0,0.40179185]
[1756993703538,0.4909717,110420.0,110410.0,0.40179185]
[1756993703740,1.26732617,110420.0,110390.0,0.09707552]
[1756993703940,0.03731,110400.0,110390.0,0.13558552]
[1756993704144,0.34731,110400.0,110390.0,0.49638552]
[1756993704544,0.34731,110400.0,110390.0,0.42243]
[1756993705137,1.14678447,110400.0,110390.0,0.04151]
[1756993705338,0.02312,110370.0,110360.0,0.06163]
[1756993705542,0.41043,110370.0,110360.0,0.06163]
[1756993705742,0.38731,110370.0,110360.0,0.06163]
[1756993705950,0.38731,110370.0,110360.0,0.31163]
[1756993706149,0.38731,110370.0,110360.0,0.72718447]
[1756993706150,0.35,110370.0,110360.0,0.72718447]
[1756993706350,0.35,110370.0,110360.0,0.31163]
[1756993706650,0.348,110370.0,110360.0,0.72718447]
[1756993706848,0.348,110370.0,110360.0,0.73218447]
[1756993707247,0.3639494,110370.0,110360.0,0.31663]
[1756993707447,0.4012594,110370.0,110360.0,0.31663]
[1756993707646,0.4012594,110370.0,110360.0,0.31863]
[1756993708052,0.3639494,110370.0,110360.0,0.31863]
[1756993708253,0.3639494,110370.0,110360.0,0.31363]
[1756993708448,0.4012594,110370.0,110360.0,0.31463]
[1756993709348,0.4012594,110370.0,110360.0,0.06463]
[1756993709942,0.4012594,110370.0,110360.0,0.06587152]
[1756993710146,0.3639494,110370.0,110360.0,0.31587152]
[1756993710349,0.4012594,110370.0,110360.0,0.06587152]
[1756993710551,0.4243794,110370.0,110360.0,0.31587152]
[1756993711054,0.3165794,110370.0,110360.0,0.31587152]
[1756993711352,0.2934594,110370.0,110360.0,0.31587152]
[1756993711950,0.3165794,110370.0,110360.0,0.06587152]
[1756993712152,0.4071636,110370.0,110360.0,0.04275152]
[1756993713050,0.7679636,110370.0,110360.0,0.01416232]
[1756993713562,2.34845961,110370.0,110330.0,0.38392]
[1756993713753,0.06043,110340.0,110330.0,0.42243]
[1756993713953,0.39043,110340.0,110330.0,0.42243]
[1756993714152,0.39043,110340.0,110330.0,0.06163]
[1756993714453,0.34151,110340.0,110330.0,0.06163]
[1756993715143,0.34151,110340.0,110330.0,0.06463]
[1756993715548,0.34151,110340.0,110330.0,0.06565282]
[1756993715748,0.34151,110340.0,110330.0,0.42645282]
[1756993716150,0.34151,110340.0,110330.0,0.0658718]
[1756993716349,0.34151,110340.0,110330.0,0.4286718]
[1756993716855,0.38214904,110350.0,110340.0,0.05825]
[1756993717054,0.39855904,110350.0,110340.0,0.11988]
[1756993717354,0.39855904,110350.0,110340.0,0.0980018]
[1756993717355,0.41071904,110350.0,110340.0,0.0980018]
[1756993718150,0.48916084,110350.0,110340.0,0.1221218]
[1756993718356,0.48916084,110350.0,110340.0,0.4829218]
[1756993719354,0.45185084,110350.0,110340.0,0.4829218]
[1756993719856,0.48926084,110350.0,110340.0,0.4246718]
[1756993721858,0.48926084,110350.0,110340.0,0.42522037]
[1756993722056,0.51097084,110350.0,110340.0,0.04130037]
[1756993722259,0.1280255,110330.0,110320.0,0.09558756]
[1756993722464,0.4597355,110330.0,110320.0,0.49250756]
[1756993722648,0.4006155,110330.0,110320.0,0.49250756]
[1756993723461,0.0906155,110330.0,110320.0,0.49250756]
[1756993723857,0.4106155,110330.0,110320.0,0.49250756]
[1756993724057,0.1806155,110330.0,110320.0,1.24870331]
[1756993724361,0.3906155,110330.0,110320.0,1.11806203]
[1756993724665,0.4206155,110330.0,110320.0,1.11806203]
[1756993724858,0.4590255,110330.0,110320.0,0.70250756]
[1756993725058,0.4620255,110330.0,110320.0,0.49250756]
[1756993725255,0.4246155,110330.0,110320.0,0.49250756]
[1756993725452,0.4246155,110330.0,110320.0,0.90806203]
[1756993725762,0.4246155,110330.0,110320.0,1.38590756]
[1756993725763,0.4620255,110330.0,110320.0,1.38590756]
[1756993726065,0.4620255,110330.0,110320.0,0.49250756]
[1756993726358,0.4837355,110330.0,110320.0,0.49250756]
[1756993726656,0.7337355,110330.0,110320.0,0.03710793]
[1756993727457,0.1497453,110320.0,110310.0,0.03622]
[1756993727652,0.1497535,110310.0,110300.0,0.00114]
[1756993727857,0.1497535,110310.0,110300.0,0.02813]
[1756993727858,0.4897535,110310.0,110300.0,0.02813]
[1756993729160,0.50510737,110310.0,110300.0,0.02813]
[1756993729554,0.50510737,110310.0,110300.0,0.02984681]
[1756993729761,0.12769737,110310.0,110300.0,0.02984681]
[1756993729964,0.43769737,110310.0,110300.0,0.44540128]
[1756993730264,0.30510747,110310.0,110300.0,0.02984681]
[1756993730460,0.23598747,110310.0,110300.0,0.27984681]
[1756993730666,0.23598747,110310.0,110300.0,0.28006531]
[1756993730667,0.39598747,110310.0,110300.0,0.28006531]
[1756993730857,0.45610747,110310.0,110300.0,0.92322531]
[1756993731565,0.45810747,110310.0,110300.0,0.92322531]
[1756993733467,0.45810747,110310.0,110300.0,1.34267058]
[1756993734162,0.45810747,110310.0,110300.0,0.92322531]
[1756993734371,0.45810747,110310.0,110300.0,1.34267058]
[1756993734861,0.45810747,110310.0,110300.0,0.92322531]
[1756993735060,0.1123601,110290.0,110280.0,0.00104879]
[1756993735261,1.22001537,110290.0,110280.0,0.04233119]
[1756993735467,0.05912,110270.0,110260.0,0.0721931]
[1756993735654,0.70992,110270.0,110260.0,0.41944527]
[1756993736058,0.31171,110270.0,110260.0,0.66944527]
[1756993736262,0.31171,110270.0,110260.0,0.25]
[1756993736461,0.34912,110270.0,110260.0,0.66944527]
[1756993736655,0.34912,110270.0,110260.0,0.25]
[1756993736862,0.34912,110270.0,110260.0,0.67046832]
[1756993737062,0.34912,110270.0,110260.0,0.25102305]
[1756993737257,0.34912,110270.0,110260.0,0.00102305]
[1756993737258,0.70992,110270.0,110260.0,0.00102305]
[1756993737465,1.14939878,110270.0,110260.0,0.00302305]
[1756993737661,0.72995351,110270.0,110260.0,0.00302305]
[1756993737961,1.32143878,110270.0,110260.0,0.00324256]
[1756993738164,1.34314878,110270.0,110260.0,0.00324256]
[1756993738361,2.23594878,110270.0,110260.0,0.00324256]
[1756993738663,0.02171,110250.0,110210.0,0.3609]
[1756993738869,0.05912,110230.0,110220.0,0.46127]
[1756993739066,0.08,110230.0,110220.0,1.55211347]
[1756993739274,0.3609,110240.0,110220.0,2.53057827]
[1756993739467,0.2901,110240.0,110230.0,0.90936467]
[1756993739667,0.38261,110250.0,110230.0,1.05423602]
[1756993739866,0.37961,110250.0,110240.0,1.33907527]
[1756993740061,0.01591146,110250.0,110240.0,1.79056647]
[1756993740266,0.0001,110260.0,110250.0,0.1305929]
[1756993740465,0.35,110260.0,110250.0,0.4913929]
[1756993740666,0.40364351,110270.0,110250.0,0.92443]
[1756993740872,0.71364351,110270.0,110260.0,0.89276]
[1756993741068,0.33103351,110270.0,110260.0,1.37454997]
[1756993741264,0.33203351,110270.0,110260.0,0.03167]
[1756993741573,0.33203351,110270.0,110260.0,1.01512472]
[1756993741769,0.69283351,110270.0,110260.0,1.01512472]
[1756993741967,0.02203351,110270.0,110260.0,1.43456999]
[1756993742161,0.02103351,110270.0,110260.0,1.77524489]
[1756993742365,0.0001,110280.0,110270.0,0.1338866]
[1756993742572,0.02086943,110290.0,110280.0,0.1223284]
[1756993742774,0.32076943,110290.0,110280.0,0.92439]
[1756993742964,0.32076943,110290.0,110280.0,1.68452587]
[1756993743166,0.32076943,110290.0,110280.0,1.2650806]
[1756993743369,0.32076943,110290.0,110280.0,1.68452587]
[1756993743966,0.13,110290.0,110280.0,3.06542954]
[1756993744162,0.19612,110290.0,110280.0,0.9931606]
[1756993744368,1.01692,110290.0,110280.0,0.03167]
[1756993744562,0.007,110290.0,110280.0,0.45111527]
[1756993744868,0.38237113,110300.0,110280.0,1.8126897]
[1756993745064,0.36157113,110300.0,110290.0,1.31204527]
[1756993745259,0.38261,110310.0,110300.0,0.03167]
[1756993745467,0.38251,110310.0,110300.0,0.45111527]
[1756993745766,0.05912,110290.0,110280.0,0.92423]
[1756993745967,0.44992,110290.0,110280.0,0.92423]
[1756993746175,0.3608,110290.0,110280.0,1.34367527]
[1756993746371,0.03081,110300.0,110280.0,1.28503]
[1756993746564,0.2991,110300.0,110290.0,0.45111527]
[1756993746765,0.009,110300.0,110290.0,0.45111527]
[1756993747070,0.009,110300.0,110290.0,1.78652318]
[1756993747271,0.0001,110310.0,110290.0,1.87717328]
[1756993747463,1.88798772,110370.0,110310.0,0.0987655]
[1756993747464,0.40375904,110350.0,110310.0,0.0987655]
[1756993747659,0.38251,110370.0,110350.0,0.0906008]
[1756993747859,0.39845585,110380.0,110360.0,1.70419527]
[1756993748064,0.4022862,110380.0,110370.0,0.45095527]
[1756993748569,0.8004962,110380.0,110370.0,1.34339527]
[1756993748764,0.7804962,110380.0,110370.0,1.34339527]
[1756993748959,0.5104962,110380.0,110370.0,1.34339527]
[1756993749260,0.7613762,110380.0,110370.0,0.45095527]
[1756993749568,0.0906008,110350.0,110340.0,0.40085]
[1756993749765,0.0906008,110350.0,110340.0,1.95401]
[1756993749961,0.0906008,110350.0,110340.0,0.43065022]
[1756993750169,0.4406008,110350.0,110340.0,1.23241]
[1756993750563,0.3506008,110350.0,110340.0,1.23241]
[1756993750764,0.0906008,110350.0,110340.0,1.65185527]
[1756993750970,0.3606008,110350.0,110340.0,1.65185527]
[1756993751164,0.4306008,110350.0,110340.0,1.65185527]
[1756993751358,0.4899808,110350.0,110340.0,0.04005]
[1756993751563,0.4526208,110350.0,110340.0,0.93225]
[1756993751769,0.4899808,110350.0,110340.0,1.00631124]
[1756993751964,0.4526208,110350.0,110340.0,1.00631124]
[1756993752167,0.4526208,110350.0,110340.0,1.42575651]
[1756993752369,0.4526208,110350.0,110340.0,0.53363651]
[1756993752370,0.8154208,110350.0,110340.0,0.53363651]
[1756993752670,0.8154208,110350.0,110340.0,1.00627124]
[1756993752874,0.4576208,110350.0,110340.0,1.42571651]
[1756993753068,0.8184208,110350.0,110340.0,1.42571651]
[1756993753270,0.8184208,110350.0,110340.0,0.53363651]
[1756993753576,0.8184208,110350.0,110340.0,1.42563651]
[1756993753781,0.8184208,110350.0,110340.0,1.00619124]
[1756993754072,0.005,110350.0,110340.0,1.86221036]
[1756993754273,0.005,110350.0,110340.0,2.80301036]
[1756993754476,0.005,110350.0,110340.0,1.91101036]
[1756993754675,0.005,110350.0,110340.0,2.80293036]
[1756993754971,0.0905858,110370.0,110360.0,0.03993]
[1756993755275,0.4005858,110370.0,110360.0,1.79401527]
[1756993755472,0.4699658,110370.0,110360.0,1.79397527]
[1756993755676,0.1499658,110370.0,110360.0,1.79397527]
[1756993755864,0.3526058,110370.0,110360.0,1.79397527]
[1756993756068,0.6399658,110370.0,110360.0,1.28453]
[1756993756277,0.6399658,110370.0,110360.0,0.39269]
[1756993756482,1.0057658,110370.0,110360.0,0.92369]
[1756993756676,1.0107658,110370.0,110360.0,0.92369]
[1756993756979,1.0107658,110370.0,110360.0,0.92365]
[1756993757176,1.0107658,110370.0,110360.0,0.03189]
[1756993757572,1.0107658,110370.0,110360.0,0.92357]
[1756993758080,0.7334058,110370.0,110360.0,1.34301527]
[1756993758273,1.0134058,110370.0,110360.0,1.34301527]
[1756993758473,0.4834058,110370.0,110360.0,1.34301527]
[1756993758782,0.7834058,110370.0,110360.0,1.34301527]
[1756993758973,0.7513858,110370.0,110360.0,1.34301527]